bitfinex/quotes_SOLUSD_20251216
["timestamp","ask_amount","ask_price","bid_price","bid_amount"]
[1765852315890,13.01764063,127.37,127.34,0.66]
[1765852316453,0.72,127.36,127.33,7.85341882]
[1765852316671,8.57123864,127.37,127.34,0.66]
[1765852316868,13.01764063,127.37,127.34,0.66]
[1765852317392,0.72,127.36,127.34,0.66]
[1765852317586,0.72,127.36,127.33,7.85341882]
[1765852317796,8.57177033,127.36,127.33,8.51341882]
[1765852320592,0.72,127.36,127.33,8.51341882]
[1765852320800,7.85137323,127.37,127.34,0.66]
[1765852320963,8.57137323,127.37,127.34,0.66]
[1765852321285,0.72,127.36,127.33,12.95982081]
[1765852321593,0.72,127.36,127.33,8.51341882]
[1765852321761,8.57187785,127.36,127.33,7.85341882]
[1765852321958,8.55133886,127.37,127.34,0.66]
[1765852322194,8.55133886,127.37,127.33,8.51341882]
[1765852322381,0.7,127.36,127.33,8.51341882]
[1765852322986,7.85133886,127.37,127.33,7.85341882]
[1765852323303,7.85133886,127.37,127.33,8.51341882]
[1765852323304,0.7,127.36,127.33,8.51341882]
[1765852323987,0.7,127.36,127.33,7.85341882]
[1765852324187,0.7,127.36,127.33,8.51341882]
[1765852325488,8.55180078,127.36,127.33,8.51341882]
[1765852326694,0.7,127.35,127.32,16.47405675]
[1765852327289,0.7,127.35,127.32,17.13405675]
[1765852327492,5.14779353,127.35,127.32,8.62]
[1765852327880,0.7,127.34,127.32,8.62]
[1765852328195,5.14779353,127.34,127.3,8.82]
[1765852328595,0.7,127.33,127.3,8.82]
[1765852328892,8.55383357,127.33,127.3,8.82]
[1765852329071,8.55383357,127.33,127.3,9.48]
[1765852329269,0.7,127.32,127.3,9.48]
[1765852329696,0.7,127.32,127.3,8.82]
[1765852330193,0.7,127.32,127.3,9.48]
[1765852331588,4.44779353,127.31,127.3,0.2]
[1765852332073,5.14779353,127.31,127.3,0.2]
[1765852332280,13.00263604,127.31,127.3,0.2]
[1765852332683,21.81258096,127.31,127.3,0.2]
[1765852333184,21.81258096,127.31,127.3,1e-08]
[1765852333504,13.00263604,127.31,127.3,1e-08]
[1765852334006,13.0470912,127.28,127.26,0.2]
[1765852334182,17.49488473,127.27,127.25,0.2]
[1765852334381,12.30572218,127.26,127.25,0.2]
[1765852334585,13.00572218,127.26,127.25,0.2]
[1765852335215,21.8156671,127.26,127.25,0.2]
[1765852335388,8.80994492,127.25,127.24,0.2]
[1765852335716,13.95773845,127.25,127.2,8.62]
[1765852335897,13.95773845,127.25,127.19,0.86]
[1765852335898,5.14779353,127.24,127.22,0.1]
[1765852336412,13.00757502,127.23,127.22,0.1]
[1765852337382,8.55978149,127.23,127.22,0.1]
[1765852338700,20.90647764,127.24,127.22,0.1]
[1765852339017,7.8587903,127.25,127.22,0.76]
[1765852339198,5.14779353,127.24,127.22,0.1]
[1765852339389,0.7,127.23,127.22,0.1]
[1765852340288,31.95294925,127.25,127.22,0.1]
[1765852340289,8.5587903,127.25,127.22,0.76]
[1765852340590,8.5587903,127.25,127.22,0.1]
[1765852340591,0.7,127.24,127.22,0.1]
[1765852341902,5.14779353,127.24,127.22,0.1]
[1765852342307,0.7,127.23,127.22,0.1]
[1765852342820,13.00757502,127.23,127.22,0.1]
[1765852343320,21.81751994,127.23,127.22,0.1]
[1765852345029,13.00757502,127.23,127.22,0.1]
[1765852345396,21.81751994,127.23,127.22,0.1]
[1765852345609,21.81751994,127.23,127.22,1e-08]
[1765852347694,21.85703612,127.19,127.13,9.28]
[1765852347895,30.47703612,127.19,127.13,8.62]
[1765852348126,5.14779353,127.18,127.14,0.66]
[1765852349208,4.44779353,127.18,127.14,8.52530363]
[1765852349400,7.86287152,127.18,127.14,8.52530363]
[1765852349601,7.86287152,127.18,127.15,0.66]
[1765852349927,8.56287152,127.18,127.15,0.66]
[1765852351625,5.09779353,127.25,127.17,4.44779353]
[1765852351929,13.6970912,127.25,127.2,4.44779353]
[1765852352312,0.71,127.24,127.21,0.69]
[1765852352510,13.7570912,127.24,127.21,0.69]
[1765852352713,41.26425586,127.24,127.2,0.69]
[1765852352914,45.00204939,127.24,127.2,0.69]
[1765852353116,0.71,127.23,127.2,0.69]
[1765852353926,7.8603993,127.22,127.2,0.69]
[1765852354130,7.8603993,127.22,127.19,0.69]
[1765852354427,7.8603993,127.22,127.18,8.62]
[1765852354428,0.71,127.21,127.18,8.62]
[1765852354630,0.71,127.21,127.18,9.31]
[1765852354829,5.15779353,127.21,127.18,8.62]
[1765852355131,5.15779353,127.21,127.16,0.69]
[1765852355334,0.71,127.2,127.16,0.69]
[1765852355630,0.71,127.2,127.16,8.55409401]
[1765852356019,0.71,127.2,127.17,0.69]
[1765852356219,7.86225332,127.19,127.17,0.69]
[1765852357206,7.86190071,127.2,127.17,8.55340886]
[1765852357407,7.86190071,127.2,127.17,0.69]
[1765852358335,0.71,127.19,127.15,5.13779353]
[1765852358824,28.22598876,127.2,127.16,0.69]
[1765852359018,0.71,127.19,127.16,0.69]
[1765852359537,0.71,127.19,127.14,32.38671337]
[1765852359711,3.56453038,127.19,127.14,9.31]
[1765852359917,2.85453038,127.18,127.14,9.31]
[1765852360236,7.86348981,127.17,127.14,9.31]
[1765852360443,7.86348981,127.17,127.05,0.99999999]
[1765852360444,2.85453038,127.15,127.09,62.59]
[1765852360645,2.85453038,127.13,127.09,0.69]
[1765852360853,2.85453038,127.13,127.07,16.48949803]
[1765852360854,2.85453038,127.11,127.08,0.69]
[1765852361148,3.56453038,127.11,127.08,0.69]
[1765852361345,13.0470912,127.13,127.07,8.62]
[1765852361346,0.71,127.1,127.07,8.62]
[1765852361528,3.56453038,127.1,127.07,8.62]
[1765852361730,3.56453038,127.1,127.07,9.31]
[1765852362132,10.72267733,127.1,127.07,0.69]
[1765852362328,2.85453038,127.11,127.08,0.69]
[1765852362729,3.56453038,127.11,127.08,0.69]
[1765852363218,7.86658275,127.12,127.08,0.69]
[1765852363421,11.43111313,127.12,127.08,0.69]
[1765852365446,0.71,127.11,127.06,8.34582771]
[1765852365633,0.71,127.11,127.07,0.69]
[1765852365833,7.86658275,127.12,127.07,8.34582771]
[1765852366343,7.86658275,127.12,127.08,8.55901639]
[1765852366647,7.86658275,127.12,127.08,0.69]
[1765852366822,8.57658275,127.12,127.09,0.69]
[1765852368273,15.52241046,127.12,127.07,7.86944579]
[1765852368462,0.71,127.11,127.08,0.69]
[1765852368757,8.36582771,127.11,127.06,8.62]
[1765852368964,35.89886735,127.12,127.08,0.69]
[1765852369127,0.71,127.11,127.08,0.69]
[1765852369541,7.86658275,127.12,127.08,0.69]
[1765852369935,16.23241046,127.12,127.08,0.69]
[1765852370855,8.57658275,127.12,127.08,0.69]
[1765852372173,0.71,127.11,127.08,0.69]
[1765852372374,27.53303964,127.12,127.08,0.69]
[1765852372546,0.71,127.11,127.08,0.69]
[1765852372746,8.36582771,127.11,127.06,9.31]
[1765852372972,8.36582771,127.11,127.07,0.69]
[1765852373173,35.18886735,127.12,127.07,8.5596135]
[1765852373348,0.71,127.11,127.07,8.5596135]
[1765852373549,0.71,127.11,127.08,0.69]
[1765852374079,7.86658275,127.12,127.08,0.69]
[1765852374281,8.57658275,127.12,127.08,8.55887571]
[1765852374486,8.57658275,127.12,127.08,0.69]
[1765852374672,7.86658275,127.12,127.08,0.69]
[1765852374848,0.71,127.11,127.08,0.69]
[1765852375179,8.57658275,127.12,127.08,0.69]
[1765852375800,7.86658275,127.12,127.08,0.69]
[1765852375975,0.71,127.11,127.08,0.69]
[1765852376790,7.86782061,127.1,127.08,0.69]
[1765852377755,7.86782061,127.1,127.06,24.14593934]
[1765852378066,8.57782061,127.1,127.07,0.69]
[1765852380604,7.86658275,127.12,127.09,7.65582771]
[1765852380782,7.86624886,127.13,127.08,7.65582771]
[1765852381085,35.8969865,127.13,127.08,0.69]
[1765852381284,35.8969865,127.13,127.08,8.64]
[1765852381285,7.65582771,127.11,127.08,8.64]
[1765852381487,7.65582771,127.11,127.08,9.33]
[1765852381785,0.71,127.11,127.08,9.33]
[1765852382087,0.68,127.12,127.09,0.72]
[1765852382469,7.86720163,127.11,127.08,8.64]
[1765852382866,7.86720163,127.11,127.09,0.72]
[1765852384668,19.66426758,127.14,127.09,16.24420268]
[1765852385180,19.66426758,127.14,127.1,0.72]
[1765852385791,8.54534528,127.14,127.1,8.58767111]
[1765852386296,7.86534528,127.14,127.1,8.58767111]
[1765852386493,7.86498285,127.15,127.11,9.36]
[1765852386690,7.86418784,127.16,127.11,12.21689892]
[1765852386989,0.68,127.15,127.11,9.36]
[1765852387499,0.68,127.15,127.12,0.72]
[1765852387689,7.86526012,127.15,127.12,8.58655116]
[1765852387997,7.86526012,127.15,127.13,0.72]
[1765852388791,44.8609275,127.18,127.13,0.72]
[1765852389006,0.68,127.17,127.13,0.72]
[1765852389899,7.86287152,127.18,127.14,11.47566245]
[1765852390277,7.86287152,127.18,127.15,0.72]
[1765852390496,8.54287152,127.18,127.15,0.72]
[1765852392394,7.86246815,127.19,127.15,11.44031595]
[1765852392802,8.54246815,127.19,127.16,0.72]
[1765852393498,7.86246815,127.19,127.16,3.57566245]
[1765852393998,0.68,127.19,127.15,8.5846535]
[1765852394182,30.37138572,127.2,127.14,19.34072255]
[1765852394380,0.68,127.19,127.15,9.34]
[1765852394796,2.85566245,127.18,127.13,17.20562529]
[1765852395279,0.68,127.17,127.13,9.34]
[1765852396005,8.5440945,127.17,127.13,9.34]
[1765852396313,7.8640945,127.17,127.14,0.72]
[1765852396683,8.54315402,127.18,127.14,3.57566245]
[1765852396997,8.54315402,127.18,127.14,0.72]
[1765852397378,0.68,127.17,127.13,19.34156935]
[1765852397582,0.68,127.17,127.13,20.06156935]
[1765852398009,8.54374737,127.17,127.14,0.72]
[1765852398492,0.68,127.17,127.14,0.72]
[1765852398680,8.543538,127.17,127.14,0.72]
[1765852400488,8.543538,127.17,127.14,8.5853308]
[1765852400684,7.863538,127.17,127.15,0.72]
[1765852401810,8.54299301,127.18,127.15,0.72]
[1765852401987,8.54299301,127.18,127.15,8.58467247]
[1765852403816,7.86240612,127.19,127.16,0.72]
[1765852404194,8.54240612,127.19,127.16,0.72]
[1765852405825,7.86240612,127.19,127.16,17.20405346]
[1765852406010,7.86240612,127.19,127.16,20.05971591]
[1765852406319,7.86240612,127.19,127.17,0.72]
[1765852406616,7.8619888,127.2,127.17,0.72]
[1765852407518,0.68,127.19,127.15,17.20457907]
[1765852407919,3.53566245,127.19,127.15,9.34]
[1765852408118,2.85566245,127.18,127.15,8.62]
[1765852408322,3.53566245,127.18,127.15,8.62]
[1765852408514,0.68,127.17,127.13,79.10554951]
[1765852408714,3.53566245,127.18,127.14,0.72]
[1765852408921,0.68,127.17,127.14,0.72]
[1765852410016,7.86348981,127.17,127.14,8.58526981]
[1765852410221,8.54315904,127.18,127.14,8.58526981]
[1765852410517,8.54315904,127.18,127.14,0.72]
[1765852410715,0.68,127.17,127.14,0.72]
[1765852412322,8.5435583,127.17,127.14,0.72]
[1765852412622,8.5435583,127.17,127.14,8.5852545]
[1765852413121,0.72,127.17,127.14,0.72]
[1765852413297,0.72,127.16,127.13,16.48557502]
[1765852413494,0.72,127.16,127.13,17.16557502]
[1765852413924,0.72,127.16,127.12,69.76637154]
[1765852414127,2.85566245,127.15,127.11,0.68]
[1765852414333,2.85566245,127.13,127.08,8.5489237]
[1765852414627,2.85566245,127.13,127.08,17.1689237]
[1765852414829,0.72,127.12,127.09,0.68]
[1765852415043,0.72,127.12,127.08,16.4889237]
[1765852415202,3.57566245,127.12,127.08,17.1689237]
[1765852415527,11.44269157,127.12,127.08,17.1689237]
[1765852415732,0.72,127.11,127.08,9.3]
[1765852415896,8.58617401,127.13,127.09,0.68]
[1765852416099,11.44183646,127.13,127.09,0.68]
[1765852416516,0.72,127.12,127.09,0.68]
[1765852417425,8.5847267,127.15,127.09,8.54822583]
[1765852417603,11.44038915,127.15,127.1,2.85566245]
[1765852417803,11.44038915,127.15,127.11,8.62]
[1765852418024,0.72,127.14,127.11,9.3]
[1765852418233,3.57566245,127.14,127.11,8.62]
[1765852418424,3.57566245,127.14,127.1,8.62]
[1765852418632,0.72,127.13,127.1,8.62]
[1765852419530,8.58627747,127.13,127.1,8.62]
[1765852419720,7.86561659,127.14,127.11,0.68]
[1765852420031,8.58561659,127.14,127.11,0.68]
[1765852420205,7.86561659,127.14,127.1,16.48767394]
[1765852420406,0.72,127.13,127.1,9.3]
[1765852421630,8.58620531,127.13,127.1,9.3]
[1765852421831,7.86620531,127.13,127.11,0.68]
[1765852427306,7.86558938,127.14,127.11,5.14476924]
[1765852427510,7.86558938,127.14,127.11,0.68]
[1765852427726,7.86558938,127.14,127.12,0.68]
[1765852428038,8.58456518,127.16,127.13,8.62]
[1765852428416,0.72,127.15,127.13,8.62]
[1765852429625,8.58477147,127.15,127.13,8.62]
[1765852430241,7.86421934,127.16,127.13,8.62]
[1765852430419,8.58421934,127.16,127.13,9.3]
[1765852430620,8.58183197,127.2,127.15,4.46476924]
[1765852430938,8.58183197,127.2,127.16,13.08476924]
[1765852431123,8.58183197,127.2,127.16,8.62]
[1765852431326,8.58183197,127.2,127.16,9.3]
[1765852432621,8.58183197,127.2,127.17,0.68]
[1765852432817,0.72,127.22,127.17,5.14476924]
[1765852433235,0.72,127.22,127.18,0.68]
[1765852433541,0.72,127.22,127.19,8.62]
[1765852433717,8.58060201,127.22,127.19,8.62]
[1765852436335,5.18476924,127.21,127.19,8.62]
[1765852436726,0.72,127.21,127.19,8.62]
[1765852437043,0.72,127.2,127.17,9.3]
[1765852437436,0.72,127.21,127.17,17.16344107]
[1765852437826,0.72,127.21,127.18,0.68]
[1765852438046,28.23160028,127.22,127.18,0.68]
[1765852438426,28.23160028,127.22,127.18,8.54285897]
[1765852438621,8.58060201,127.22,127.19,0.68]
[1765852439948,8.58116859,127.21,127.18,7.86285897]
[1765852440146,0.72,127.22,127.19,0.68]
[1765852440337,7.85914822,127.25,127.2,13.08476924]
[1765852440538,7.85914822,127.25,127.21,4.46476924]
[1765852440745,8.57914822,127.25,127.21,5.14476924]
[1765852440962,8.57914822,127.25,127.22,0.68]
[1765852441343,7.85914822,127.25,127.22,0.68]
[1765852442255,5.13476924,127.24,127.18,66.36476924]
[1765852442452,4.46476924,127.23,127.18,9.34]
[1765852442635,5.13476924,127.23,127.18,9.34]
[1765852442835,5.13476924,127.22,127.18,9.34]
[1765852443238,0.67,127.22,127.19,0.72]
[1765852444160,8.53093563,127.22,127.19,0.72]
[1765852444658,8.53093563,127.22,127.19,8.58223156]
[1765852444838,8.53093563,127.22,127.19,0.72]
[1765852445168,8.53093563,127.22,127.19,8.5822516]
[1765852446060,4.46476924,127.25,127.2,4.46476924]
[1765852446267,8.52880899,127.25,127.21,8.62]
[1765852446453,0.67,127.24,127.21,9.34]
[1765852446964,5.13476924,127.24,127.19,9.34]
[1765852447356,0.67,127.23,127.2,0.72]
[1765852448159,8.5302451,127.23,127.2,0.72]
[1765852449259,12.32408433,127.24,127.2,8.58160519]
[1765852449456,8.52931509,127.24,127.2,8.58160519]
[1765852450457,8.52931509,127.24,127.2,7.86160519]
[1765852450654,8.52931509,127.24,127.21,0.72]
[1765852450879,0.67,127.23,127.2,0.72]
[1765852451459,0.67,127.23,127.2,8.58158489]
[1765852453050,8.52982689,127.23,127.2,8.58158489]
[1765852454764,7.85982689,127.23,127.2,0.72]
[1765852454945,8.52982689,127.23,127.2,0.72]
[1765852455875,8.52982689,127.23,127.2,8.58151675]
[1765852456364,0.67,127.23,127.2,8.58151675]
[1765852456565,8.52990284,127.23,127.2,8.58151675]
[1765852456864,8.52990284,127.23,127.2,0.72]
[1765852457068,7.52990284,127.23,127.2,0.72]
[1765852458261,11.98738613,127.23,127.19,16.48206268]
[1765852458572,11.98738613,127.23,127.19,17.20206268]
[1765852458950,12.65738613,127.23,127.19,17.20206268]
[1765852459352,12.65738613,127.23,127.2,0.72]
[1765852461072,8.19990284,127.23,127.2,0.72]
[1765852461273,0.67,127.22,127.19,8.62]
[1765852461473,0.67,127.22,127.19,9.34]
[1765852461864,27.17935658,127.23,127.19,8.62]
[1765852462081,0.67,127.22,127.19,9.34]
[1765852462381,0.67,127.22,127.15,0.72]
[1765852462382,4.45748329,127.2,127.15,0.72]
[1765852462575,4.45748329,127.19,127.15,0.72]
[1765852462951,5.12748329,127.19,127.15,0.72]
[1765852463279,0.67,127.18,127.15,0.72]
[1765852463664,5.12748329,127.18,127.15,0.72]
[1765852463860,5.12748329,127.18,127.13,8.58579522]
[1765852463861,4.45748329,127.17,127.13,8.58579522]
[1765852464190,4.45748329,127.18,127.14,8.58526372]
[1765852464482,12.99035481,127.18,127.14,8.58526372]
[1765852464693,12.99035481,127.18,127.15,0.72]
[1765852465476,32.64753361,127.18,127.15,0.72]
[1765852465795,4.45748329,127.17,127.13,16.48576762]
[1765852466085,5.12748329,127.17,127.13,0.72]
[1765852466292,0.67,127.16,127.13,9.34]
[1765852466469,7.8643504,127.16,127.13,9.34]
[1765852467789,7.86375682,127.17,127.14,0.72]
[1765852467984,8.53375682,127.17,127.14,0.72]
[1765852468897,12.99124011,127.17,127.14,0.72]
[1765852470700,8.53375682,127.17,127.14,0.72]
[1765852470881,12.99124011,127.17,127.14,0.72]
[1765852471075,12.98973661,127.19,127.14,8.58526502]
[1765852471275,4.45748329,127.18,127.14,8.58526502]
[1765852471485,5.12748329,127.18,127.15,0.72]
[1765852472299,12.99095541,127.18,127.15,0.72]
[1765852472683,7.86347212,127.18,127.15,0.72]
[1765852473502,5.16748329,127.19,127.15,0.72]
[1765852474675,7.86287152,127.18,127.15,0.72]
[1765852475293,13.03035481,127.18,127.15,9.34]
[1765852476888,5.16748329,127.17,127.14,8.62]
[1765852477091,5.16748329,127.17,127.14,9.3]
[1765852477386,0.71,127.17,127.14,9.3]
[1765852477898,7.86287152,127.18,127.15,8.54451961]
[1765852478304,7.86287152,127.18,127.16,0.68]
[1765852478798,8.57287152,127.18,127.15,0.68]
[1765852479585,7.86287152,127.18,127.15,0.68]
[1765852480294,7.86287152,127.18,127.15,8.54468683]
[1765852480499,7.86123907,127.21,127.17,4.45748329]
[1765852480680,7.86123907,127.21,127.18,8.62]
[1765852480878,7.86123907,127.21,127.16,8.62]
[1765852480879,4.45748329,127.19,127.16,8.62]
[1765852481186,4.45748329,127.18,127.16,8.62]
[1765852481384,2.85574047,127.18,127.13,20.91290352]
[1765852481681,2.85574047,127.16,127.12,8.54637007]
[1765852482007,2.85574047,127.14,127.1,0.68]
[1765852482185,2.85574047,127.13,127.1,0.68]
[1765852482595,3.56574047,127.13,127.1,0.68]
[1765852482904,11.43280342,127.12,127.09,8.62]
[1765852483109,2.85574047,127.11,127.08,0.68]
[1765852483287,3.56574047,127.11,127.08,0.68]
[1765852483609,11.43280342,127.12,127.08,0.68]
[1765852483988,7.86611594,127.13,127.08,3.53574047]
[1765852484606,8.57611594,127.13,127.09,0.68]
[1765852484802,11.43185641,127.13,127.09,0.68]
[1765852485415,11.43185641,127.13,127.09,8.54842698]
[1765852485910,11.43185641,127.13,127.1,0.68]
[1765852486204,8.57611594,127.13,127.1,0.68]
[1765852486508,11.43185641,127.13,127.1,0.68]
[1765852486691,2.85574047,127.11,127.06,0.88]
[1765852486894,2.85574047,127.11,127.06,8.75009148]
[1765852487203,3.56574047,127.1,127.06,9.5]
[1765852487801,7.86843968,127.09,127.06,9.5]
[1765852488006,7.8680733,127.1,127.07,0.68]
[1765852489796,7.86683414,127.12,127.08,2.85574047]
[1765852490096,11.43257461,127.12,127.07,11.40514455]
[1765852490297,7.86683414,127.12,127.08,0.68]
[1765852491087,8.57606481,127.13,127.08,3.53574047]
[1765852491294,7.86606481,127.13,127.09,2.85574047]
[1765852491494,7.86606481,127.13,127.09,3.53574047]
[1765852491691,7.86606481,127.13,127.1,0.68]
[1765852492317,10.72180528,127.13,127.1,0.68]
[1765852492829,11.43180528,127.13,127.1,0.68]
[1765852494126,10.72180528,127.13,127.1,0.68]
[1765852494422,10.72134713,127.14,127.1,8.54778903]
[1765852494612,7.86494831,127.15,127.1,11.4035295]
[1765852494808,7.86435206,127.16,127.11,3.53574047]
[1765852495121,7.86435206,127.16,127.12,8.62]
[1765852495296,8.57435206,127.16,127.12,9.3]
[1765852495619,8.57435206,127.16,127.13,0.68]
[1765852495819,8.57435206,127.16,127.12,9.3]
[1765852496022,8.57435206,127.16,127.13,0.68]
[1765852497502,3.56574047,127.15,127.12,8.62]
[1765852497821,3.56574047,127.15,127.12,9.3]
[1765852498198,7.86534528,127.14,127.12,8.62]
[1765852498530,7.86534528,127.14,127.12,9.3]
[1765852499230,10.72052274,127.15,127.12,8.62]
[1765852499433,2.85574047,127.16,127.13,0.68]
[1765852500019,11.43000692,127.16,127.13,0.68]
[1765852500332,0.71,127.15,127.12,8.62]
[1765852500528,3.56574047,127.15,127.12,8.62]
[1765852500718,0.71,127.15,127.12,17.1664777]
[1765852500920,10.72000692,127.16,127.12,16.4864777]
[1765852501120,11.43000692,127.16,127.13,0.68]
[1765852502433,8.57426645,127.16,127.13,0.68]
[1765852502636,11.43000692,127.16,127.13,0.68]
[1765852502934,11.43000692,127.16,127.12,8.62]
[1765852503133,2.85574047,127.15,127.12,9.3]
[1765852503315,2.85574047,127.13,127.1,61.9]
[1765852503515,0.7,127.14,127.1,0.68]
[1765852503722,2.85574047,127.13,127.1,0.68]
[1765852504217,28.22453697,127.16,127.1,0.68]
[1765852504408,2.85574047,127.15,127.1,3.53574047]
[1765852504738,10.72108575,127.14,127.1,0.68]
[1765852504939,11.42108575,127.14,127.1,0.68]
[1765852505234,2.85574047,127.12,127.07,7.86959621]
[1765852505412,2.85574047,127.12,127.08,8.62]
[1765852505609,2.85574047,127.12,127.08,9.3]
[1765852505910,3.55574047,127.12,127.08,9.3]
[1765852506125,3.55574047,127.12,127.09,0.68]
[1765852506522,2.85574047,127.13,127.09,8.54842983]
[1765852506727,11.42208307,127.13,127.09,8.54842983]
[1765852507013,0.7,127.12,127.09,8.54842983]
[1765852507217,10.72208307,127.13,127.1,0.68]
[1765852507732,11.42208307,127.13,127.1,0.68]
[1765852508236,7.8663426,127.13,127.1,0.68]
[1765852508424,7.86563811,127.14,127.1,8.54771586]
[1765852508931,10.72072132,127.15,127.11,0.68]
[1765852509235,11.42072132,127.15,127.11,0.68]
[1765852510208,11.42072132,127.15,127.11,8.54719489]
[1765852510733,11.42072132,127.15,127.11,9.3]
[1765852511035,31.08253807,127.15,127.11,9.3]
[1765852512436,28.2267976,127.15,127.11,9.3]
[1765852512734,31.08253807,127.15,127.11,9.3]
[1765852514952,7.86596397,127.13,127.11,9.3]
[1765852515136,7.86596397,127.13,127.11,8.62]
[1765852515338,0.7,127.12,127.08,8.548766]
[1765852515648,3.55574047,127.12,127.09,8.62]
[1765852515955,3.55574047,127.12,127.09,9.3]
[1765852516841,0.7,127.12,127.09,9.3]
[1765852517141,11.42282031,127.12,127.09,9.3]
[1765852520770,7.86707984,127.12,127.09,8.62]
[1765852520949,8.56707984,127.12,127.09,9.3]
[1765852521455,11.42282031,127.12,127.09,9.3]
[1765852521970,7.86707984,127.12,127.1,0.68]
[1765852525461,7.86707984,127.12,127.09,8.62]
[1765852525760,8.56707984,127.12,127.09,9.3]
[1765852526060,7.86707984,127.12,127.1,0.68]
[1765852529063,8.56707984,127.12,127.1,0.68]
[1765852529740,7.86707984,127.12,127.1,0.68]
[1765852530065,8.56707984,127.12,127.09,8.62]
[1765852530244,8.56739143,127.11,127.09,8.62]
[1765852530450,11.42531043,127.11,127.09,8.62]
[1765852530644,2.857919,127.1,127.08,0.68]
[1765852531360,11.42531043,127.11,127.08,0.68]
[1765852532570,11.42531043,127.11,127.06,62.1]
[1765852532571,2.857919,127.09,127.06,0.87]
[1765852533071,3.557919,127.09,127.06,0.87]
[1765852534066,10.72697786,127.08,127.06,0.87]
[1765852534461,7.86905886,127.08,127.06,0.87]
[1765852534773,3.557919,127.07,127.06,0.2]
[1765852534981,2.857919,127.07,127.06,0.2]
[1765852535351,3.557919,127.07,127.06,0.2]
[1765852536044,2.857919,127.07,127.06,0.2]
[1765852536370,8.56967813,127.07,127.06,0.2]
[1765852536564,0.7,127.07,127.06,0.2]
[1765852536737,11.42709935,127.08,127.06,0.2]
[1765852537870,2.857919,127.07,127.06,0.2]
[1765852538468,10.72759713,127.07,127.06,0.2]
[1765852538768,11.42759713,127.07,127.06,0.2]
[1765852540770,20.23754205,127.07,127.06,0.2]
[1765852541363,21.85073533,127.07,127.06,0.2]
[1765852541674,8.80994492,127.06,127.03,0.2]
[1765852541970,8.80994492,127.06,127.01,0.2]
[1765852541971,8.80994492,127.03,127.01,0.2]
[1765852542147,4.47111228,127.02,127.01,0.2]
[1765852542344,5.17111228,127.02,127.01,0.2]
[1765852542549,13.04388822,127.02,127.01,0.2]
[1765852543473,26.32494542,127.02,127.01,0.2]
[1765852543973,21.85383314,127.02,127.01,0.2]
[1765852546755,7.87242652,127.03,127.01,0.87]
[1765852546963,32.01777271,127.06,127.01,8.74334081]
[1765852547162,32.01777271,127.06,127.02,0.67]
[1765852547357,4.47111228,127.05,127.02,0.67]
[1765852547763,5.17111228,127.05,127.02,0.67]
[1765852547978,12.3426488,127.04,127.02,0.67]
[1765852548179,7.87153652,127.04,127.02,0.67]
[1765852550389,7.8711786,127.05,127.02,8.54276012]
[1765852550888,19.67344682,127.08,127.03,5.14111228]
[1765852551074,7.86967813,127.07,127.03,5.14111228]
[1765852551281,7.86967813,127.07,127.04,0.67]
[1765852552375,19.67344682,127.08,127.04,0.67]
[1765852552376,27.54250568,127.08,127.04,0.67]
[1765852553572,7.86905886,127.08,127.04,8.54149199]
[1765852553770,7.86905886,127.08,127.04,13.01260427]
[1765852553976,7.86905886,127.08,127.05,0.67]
[1765852555595,7.86843968,127.09,127.05,0.67]
[1765852558498,7.86843968,127.09,127.05,8.54063]
[1765852558870,32.71065118,127.09,127.06,0.67]
[1765852559195,5.17111228,127.08,127.04,61.9]